lending/lending_fUSD_20250701
["ID","MTS","AMOUNT","RATE_DAILY","PERIOD"]
[368732457,1751334642971,-709.542629,0.00013873,2]
[368732459,1751334642981,-709.542629,0.00013873,2]
[368732461,1751334642991,-161.712934,0.00013873,2]
[368732463,1751334643000,-1523.35050277,0.00013873,2]
[368733927,1751334705885,176.03,0.00012916,2]
[368733928,1751334706090,176.03,0.00012932,2]
[368733929,1751334706330,176.03,0.00012948,2]
[368733930,1751334706633,176.03,0.00012965,2]
[368733931,1751334706828,176.03,0.00012981,2]
[368733932,1751334823066,722.70760771,0.000273,120]
[368733933,1751334837997,165.76,0.00012837,2]
[368733935,1751334933349,250.0,0.00012832,2]
[368733936,1751334953831,1364.53,0.00012832,2]
[368733937,1751334959175,-166.83,0.00013223,2]
[368733938,1751334959202,-771.92998955,0.00013678,2]
[368733939,1751334959231,-150.0,0.00013738,2]
[368733940,1751334959260,-150.0,0.00013749,2]
[368733941,1751334959287,-150.0,0.00013749,2]
[368733942,1751334959313,-1200.0,0.00013749,2]
[368733943,1751334959342,-300.0,0.00013749,2]
[368733944,1751334959368,-20711.24001045,0.0001375,2]
[368733945,1751335027628,527.3640525,0.00027397,120]
[368733946,1751335073171,634.93,0.0001295,2]
[368733954,1751335224124,200.0,0.00012832,7]
[368733955,1751335249530,1000.0,0.00012827,2]
[368733960,1751335307650,200.0,0.0001283,2]
[368733963,1751335400846,203.14,0.00012806,2]
[368733964,1751335463010,462.74,0.00012791,2]
[368733977,1751335651227,154.73,0.000273,120]
[368733980,1751335675128,23900.0,0.00012767,2]
[368733986,1751335738733,522.0,0.0001241,2]
[368734014,1751335832188,-250.0,0.00013433,2]
[368734016,1751335832202,-173.23154836,0.0001344,2]
[368734018,1751335832216,-171.18356024,0.00013516,2]
[368734021,1751335832234,-699.9157064,0.00013516,2]
[368734024,1751335832249,-150.0,0.00013652,2]
[368734026,1751335832263,-437.68760324,0.00013685,2]
[368734030,1751335832277,-300.0,0.00013694,2]
[368734033,1751335832308,-200.0,0.00013699,2]
[368734036,1751335832326,-236.53834395,0.00013699,2]
[368734039,1751335832348,-190.38165605,0.00013699,2]
[368734042,1751335832368,-173.23154836,0.00013706,2]
[368734044,1751335832386,-150.0,0.00013712,2]
[368734047,1751335832402,-1830.94597708,0.00013728,2]
[368734050,1751335832418,-183.05389,0.0001373,2]
[368734053,1751335832435,-218.0,0.0001373,2]
[368734055,1751335832451,-150.0,0.00013731,2]
[368734058,1751335832466,-1200.0,0.00013731,2]
[368734061,1751335832483,-300.0,0.00013732,2]
[368734063,1751335832500,-500.0,0.00013732,2]
[368734066,1751335832516,-500.0,0.00013732,2]
[368734068,1751335832533,-500.0,0.00013732,2]
[368734070,1751335832549,-694.25504945,0.00013732,2]
[368734073,1751335832564,-500.0,0.00013732,2]
[368734075,1751335832579,-500.0,0.00013732,2]
[368734078,1751335832593,-500.0,0.00013732,2]
[368734080,1751335832609,-500.0,0.00013732,2]
[368734083,1751335832625,-300.0,0.00013732,2]
[368734086,1751335832640,-500.0,0.00013732,2]
[368734090,1751335832660,-500.0,0.00013732,2]
[368734092,1751335832674,-500.0,0.00013732,2]
[368734095,1751335832689,-500.0,0.00013732,2]
[368734098,1751335832704,-300.0,0.00013732,2]
[368734100,1751335832719,-500.0,0.00013732,2]
[368734102,1751335832734,-300.0,0.00013732,2]
[368734105,1751335832749,-300.0,0.00013732,2]
[368734107,1751335832764,-500.0,0.00013732,2]
[368734110,1751335832779,-500.0,0.00013732,2]
[368734112,1751335832793,-300.0,0.00013732,2]
[368734115,1751335832807,-300.0,0.00013732,2]
[368734117,1751335832821,-500.0,0.00013732,2]
[368734120,1751335832835,-500.0,0.00013732,2]
[368734122,1751335832850,-300.0,0.00013732,2]
[368734124,1751335832865,-300.0,0.00013732,2]
[368734127,1751335832879,-500.0,0.00013732,2]
[368734129,1751335832894,-500.0,0.00013732,2]
[368734132,1751335832909,-300.0,0.00013732,2]
[368734134,1751335832923,-300.0,0.00013732,2]
[368734137,1751335832938,-500.0,0.00013732,2]
[368734139,1751335832952,-500.0,0.00013732,2]
[368734141,1751335832965,-300.0,0.00013732,2]
[368734144,1751335832980,-300.0,0.00013732,2]
[368734146,1751335832994,-500.0,0.00013732,2]
[368734149,1751335833009,-500.0,0.00013732,2]
[368734151,1751335833025,-300.0,0.00013732,2]
[368734154,1751335833040,-500.0,0.00013732,2]
[368734156,1751335833055,-500.0,0.00013732,2]
[368734159,1751335833069,-300.0,0.00013732,2]
[368734161,1751335833084,-500.0,0.00013732,2]
[368734164,1751335833099,-500.0,0.00013732,2]
[368734166,1751335833114,-500.0,0.00013732,2]
[368734168,1751335833129,-300.0,0.00013732,2]
[368734171,1751335833142,-500.0,0.00013732,2]
[368734173,1751335833156,-512.74331202,0.00013732,2]
[368734175,1751335833171,-300.0,0.00013732,2]
[368734178,1751335833185,-500.0,0.00013732,2]
[368734180,1751335833200,-207.4,0.00013732,2]
[368734182,1751335833214,-500.0,0.00013732,2]
[368734185,1751335833228,-500.0,0.00013732,2]
[368734187,1751335833243,-500.0,0.00013732,2]
[368734190,1751335833257,-500.0,0.00013732,2]
[368734192,1751335833271,-500.0,0.00013732,2]
[368734194,1751335833285,-500.0,0.00013732,2]
[368734197,1751335833299,-300.0,0.00013732,2]
[368734199,1751335833312,-500.0,0.00013732,2]
[368734201,1751335833325,-500.0,0.00013732,2]
[368734204,1751335833339,-300.0,0.00013732,2]
[368734206,1751335833352,-500.0,0.00013732,2]
[368734208,1751335833365,-300.0,0.00013732,2]
[368734211,1751335833378,-500.0,0.00013732,2]
[368734213,1751335833391,-300.0,0.00013732,2]
[368734215,1751335833404,-500.0,0.00013732,2]
[368734218,1751335833417,-300.0,0.00013732,2]
[368734220,1751335833429,-500.0,0.00013732,2]
[368734222,1751335833442,-300.0,0.00013732,2]
[368734224,1751335833455,-300.0,0.00013732,2]
[368734227,1751335833467,-231.31622502,0.00013732,2]
[368734229,1751335833480,-155.85766746,0.00013732,2]
[368734231,1751335833493,-1000.0,0.00013732,2]
[368734234,1751335833505,-6912.642,0.00013732,2]
[368734236,1751335833520,-1026.74974505,0.00013732,2]
[368734238,1751335833533,-206.33422799,0.00013732,2]
[368734240,1751335833546,-152.24635561,0.00013732,2]
[368734242,1751335833558,-411.08589109,0.0001374,2]
[368734244,1751335833571,-30367.11318245,0.0001374,2]
[368734245,1751335833610,-3174.12157028,0.0001374,2]
[368734246,1751335833624,-156.895198,0.0001374,2]
[368734247,1751335833636,-151.0,0.0001374,2]
[368734248,1751335833649,-155.365665,0.0001374,2]
[368734249,1751335833661,-151.0,0.0001374,2]
[368734250,1751335833675,-156.669193,0.0001374,2]
[368734251,1751335833687,-156.669193,0.0001374,2]
[368734252,1751335833699,-151.0,0.0001374,2]
[368734253,1751335833711,-151.0,0.0001374,2]
[368734254,1751335833723,-500.0,0.00013742,2]
[368734255,1751335833735,-500.0,0.00013742,2]
[368734256,1751335833748,-282.77850994,0.00013742,2]
[368734257,1751335833760,-500.0,0.00013742,2]
[368734258,1751335833773,-2800.0,0.00013742,2]
[368734259,1751335833786,-500.0,0.00013742,2]
[368734260,1751335833799,-150.0,0.00013742,2]
[368734261,1751335833811,-150.0,0.00013742,2]
[368734262,1751335833824,-150.0,0.00013742,2]
[368734263,1751335833836,-150.0,0.00013742,2]
[368734264,1751335833850,-500.0,0.00013742,2]
[368734265,1751335833863,-150.0,0.00013742,2]
[368734266,1751335833876,-1235.0,0.00013742,2]
[368734267,1751335833885,-150.0,0.00013742,2]
[368734268,1751335833895,-150.0,0.00013742,2]
[368734269,1751335833906,-150.0,0.00013742,2]
[368734270,1751335833917,-500.0,0.00013742,2]
[368734271,1751335833927,-500.0,0.00013742,2]
[368734272,1751335834583,-150.5522238,0.00013742,2]
[368734273,1751335834627,-1830.94597708,0.00013747,2]
[368734274,1751335834657,-452.0,0.00013753,2]
[368734275,1751335834667,-835.99020467,0.00013754,2]
[368734276,1751335834677,-1000.0,0.00013765,2]
[368734277,1751335834687,-1830.94597708,0.00013766,2]
[368734278,1751335834697,-1037.49537567,0.00013767,2]
[368734279,1751335834707,-299.99,0.00013767,2]
[368734280,1751335834716,-1718.96911067,0.00013767,2]
[368734281,1751335835365,-2240.46369792,0.00013767,2]
[368734282,1751335835418,-6040.55719141,0.00013767,2]
[368734283,1751335835430,-999.99,0.00013767,2]
[368734284,1751335835440,-262.878759,0.00013767,2]
[368734285,1751335835450,-155.353627,0.00013767,2]
[368734286,1751335835463,-210.574444,0.00013767,2]
[368734287,1751335835474,-154.297762,0.00013767,2]
[368734288,1751335835484,-151.0,0.00013767,2]
[368734289,1751335835494,-151.0,0.00013767,2]
[368734290,1751335835503,-151.0,0.00013767,2]
[368734291,1751335835513,-166.913059,0.00013767,2]
[368734292,1751335835525,-155.494666,0.00013767,2]
[368734293,1751335835535,-151.0,0.00013767,2]
[368734294,1751335835544,-207.847588,0.00013767,2]
[368734295,1751335835554,-153.840952,0.00013767,2]
[368734296,1751335835565,-722.678296,0.00013767,2]
[368734297,1751335835574,-151.0,0.00013767,2]
[368734298,1751335835583,-722.678296,0.00013767,2]
[368734299,1751335835593,-151.0,0.00013767,2]
[368734300,1751335835603,-151.0,0.00013767,2]
[368734301,1751335835614,-151.0,0.00013767,2]
[368734302,1751335835623,-151.0,0.00013767,2]
[368734303,1751335835632,-151.0,0.00013767,2]
[368734304,1751335835642,-152.382243,0.00013767,2]
[368734305,1751335835651,-151.0,0.00013767,2]
[368734306,1751335835661,-151.0,0.00013767,2]
[368734307,1751335835670,-151.23941,0.00013767,2]
[368734308,1751335835680,-151.0,0.00013767,2]
[368734309,1751335835689,-151.0,0.00013767,2]
[368734310,1751335835699,-151.0,0.00013767,2]
[368734311,1751335835709,-151.0,0.00013767,2]
[368734312,1751335835719,-151.0,0.00013767,2]
[368734313,1751335835728,-152.893165,0.00013767,2]
[368734314,1751335835738,-151.0,0.00013767,2]
[368734315,1751335835748,-156.669193,0.00013767,2]
[368734316,1751335835758,-156.669193,0.00013767,2]
[368734317,1751335835768,-151.0,0.00013767,2]
[368734318,1751335835778,-157.72954,0.00013767,2]
[368734319,1751335835788,-150.0,0.00013771,2]
[368734320,1751335835798,-238938.21729885,0.00013778,2]
[368734321,1751335835823,-623.51155404,0.00013778,2]
[368734322,1751335835836,-5046.41299955,0.00013778,2]
[368734323,1751335835847,-3291.4000002,0.00013778,2]
[368734324,1751335836993,418.3839798,0.00027397,120]
[368734327,1751335838680,-695.34802115,0.00013679,2]
[368734328,1751335838690,-153.99378,0.0001374,2]
[368734329,1751335838700,-500.0,0.00013742,2]
[368734330,1751335838710,-150.0,0.00013742,2]
[368734331,1751335838720,-52.57554806,0.00013767,2]
[368734332,1751335838737,-99.96639594,0.00013767,2]
[368734333,1751335838748,-179.03360406,0.00013776,2]
[368734334,1751335838771,-268.4375,0.00013691,2]
[368734335,1751335839873,-426.91052096,0.00013691,2]
[368734336,1751335839883,-4820.96639594,0.00013776,2]
[368734337,1751335839893,-150.96615701,0.00013777,2]
[368734338,1751335839904,-240.60002175,0.00013777,2]
[368734339,1751335839914,-240.84786258,0.00013777,2]
[368734340,1751335839924,-500.0,0.00013777,2]
[368734341,1751335839934,-420.2463127,0.00013777,2]
[368734342,1751335839944,-500.0,0.00013777,2]
[368734343,1751335839954,-500.0,0.00013777,2]
[368734344,1751335839964,-157.91571136,0.00013777,2]
[368734345,1751335839975,-205.18239517,0.00013777,2]
[368734346,1751335839986,-500.0,0.00013777,2]
[368734347,1751335839996,-500.0,0.00013777,2]
[368734348,1751335840005,-500.0,0.00013777,2]
[368734349,1751335840014,-500.0,0.00013777,2]
[368734350,1751335840023,-500.0,0.00013777,2]
[368734351,1751335840032,-189553.58451143,0.00013778,2]
[368734352,1751335840042,-2409.2665,0.00013778,2]
[368734353,1751335840051,-150.99,0.00013778,2]
[368734354,1751335840061,-499.99,0.00013778,2]
[368734355,1751335840071,-9999.99,0.00013778,2]
[368734356,1751335840081,-9999.99,0.00013778,2]
[368734357,1751335840091,-4975.24,0.00013778,2]
[368734358,1751335840101,-151.0,0.00013778,2]
[368734359,1751335840110,-177.347824,0.00013778,2]
[368734360,1751335840120,-152.036529,0.00013778,2]
[368734361,1751335840130,-151.0,0.00013778,2]
[368734362,1751335840140,-151.0,0.00013778,2]
[368734363,1751335840149,-159.249139,0.00013778,2]
[368734364,1751335840158,-722.678296,0.00013778,2]
[368734365,1751335840168,-722.678296,0.00013778,2]
[368734366,1751335840178,-151.0,0.00013778,2]
[368734368,1751335840188,-151.0,0.00013778,2]
[368734369,1751335840197,-722.678296,0.00013778,2]
[368734370,1751335840206,-722.678296,0.00013778,2]
[368734371,1751335840216,-151.0,0.00013778,2]
[368734373,1751335840225,-202.726276,0.00013778,2]
[368734374,1751335840235,-151.0,0.00013778,2]
[368734375,1751335840245,-151.0,0.00013778,2]
[368734376,1751335840255,-151.0,0.00013778,2]
[368734377,1751335840264,-151.0,0.00013778,2]
[368734378,1751335840273,-151.0,0.00013778,2]
[368734379,1751335840283,-151.0,0.00013778,2]
[368734380,1751335840292,-151.0,0.00013778,2]
[368734381,1751335840302,-151.0,0.00013778,2]
[368734382,1751335840311,-154.072939,0.00013778,2]
[368734383,1751335840321,-151.0,0.00013778,2]
[368734384,1751335840330,-151.0,0.00013778,2]
[368734385,1751335840340,-151.0,0.00013778,2]
[368734386,1751335840350,-152.277164,0.00013778,2]
[368734388,1751335840360,-151.0,0.00013778,2]
[368734390,1751335840369,-151.0,0.00013778,2]
[368734391,1751335840379,-151.0,0.00013778,2]
[368734392,1751335840389,-151.0,0.00013778,2]
[368734393,1751335840398,-151.0,0.00013778,2]
[368734394,1751335840408,-151.0,0.00013778,2]
[368734395,1751335840418,-151.0,0.00013778,2]
[368734396,1751335840428,-151.0,0.00013778,2]
[368734397,1751335840437,-155.359711,0.00013778,2]
[368734398,1751335840447,-156.669193,0.00013778,2]
[368734399,1751335840458,-156.669193,0.00013778,2]
[368734400,1751335840467,-156.669193,0.00013778,2]
[368734401,1751335840476,-156.669193,0.00013778,2]
[368734403,1751335840486,-286.613518,0.00013778,2]
[368734405,1751335840495,-152.00962627,0.00013779,2]
[368734407,1751335840504,-512.341,0.00013779,2]
[368734421,1751335840644,-1000.0,0.00013779,2]
[368734424,1751335840656,-3853.42,0.00013779,2]
[368734426,1751335840666,-150.99,0.00013779,2]
[368734428,1751335840675,-242.57073136,0.00013782,2]
[368734430,1751335840685,-490.0,0.00013784,2]
[368734432,1751335840695,-490.0,0.00013784,2]
[368734434,1751335840705,-490.0,0.00013784,2]
[368734436,1751335840715,-490.67560938,0.00013784,2]
[368734438,1751335840724,-164.76784922,0.00013784,2]
[368734440,1751335840734,-490.74083808,0.00013784,2]
[368734442,1751335840744,-191.51062362,0.00013784,2]
[368734444,1751335840753,-2280.97079887,0.00013785,2]
[368734446,1751335840763,-151.0,0.00013785,2]
[368734448,1751335840773,-151.0,0.00013785,2]
[368734450,1751335840784,-156.669193,0.00013785,2]
[368734451,1751335840794,-156.669193,0.00013785,2]
[368734453,1751335840804,-1830.94597708,0.00013785,2]
[368734455,1751335840815,-7168.409754,0.00013787,2]
[368734457,1751335840824,-150.94266569,0.0001379,2]
[368734459,1751335840834,-151.0,0.00013792,2]
[368734461,1751335840844,-156.669193,0.00013795,2]
[368734463,1751335840854,-156.669193,0.00013795,2]
[368734465,1751335840864,-151.0,0.00013796,2]
[368734467,1751335840874,-156.669193,0.00013796,2]
[368734469,1751335840882,-156.669193,0.00013796,2]
[368734471,1751335840892,-151.0,0.00013797,2]
[368734473,1751335840902,-722.678296,0.00013797,2]
[368734475,1751335840911,-151.0,0.00013797,2]
[368734477,1751335840921,-722.678296,0.00013797,2]
[368734480,1751335840936,-151.0,0.00013797,2]
[368734482,1751335840947,-151.0,0.00013797,2]
[368734484,1751335840957,-159.498781,0.00013797,2]
[368734486,1751335840968,-285.422562,0.00013797,2]
[368734488,1751335840980,-151.0,0.00013797,2]
[368734490,1751335840989,-151.0,0.00013797,2]
[368734492,1751335840999,-151.0,0.00013797,2]
[368734494,1751335841009,-1830.94597708,0.00013804,2]
[368734496,1751335841019,-437.68760323,0.00013816,2]
[368734498,1751335841029,-151.0,0.00013818,2]
[368734500,1751335841038,-151.0,0.00013818,2]
[368734502,1751335841049,-757.195,0.00013821,2]
[368734504,1751335841059,-1830.94597708,0.00013824,2]
[368734506,1751335841069,-150.0,0.00013828,2]
[368734508,1751335841079,-150.0,0.00013829,2]
[368734510,1751335841089,-151.0,0.00013832,2]
[368734512,1751335841098,-153.481115,0.00013832,2]
[368734514,1751335841108,-1000.0,0.00013833,2]
[368734516,1751335841118,-156.669193,0.00013833,2]
[368734518,1751335841128,-156.669193,0.00013833,2]
[368734520,1751335841138,-151.0,0.00013835,2]
[368734522,1751335841148,-5260.32949642,0.00013842,2]
[368734524,1751335841157,-1830.94597708,0.00013843,2]
[368734526,1751335841167,-156.477723,0.00013846,2]
[368734528,1751335841177,-151.0,0.00013846,2]
[368734530,1751335841186,-490.0,0.00013848,2]
[368734532,1751335841197,-490.0,0.00013848,2]
[368734534,1751335841206,-518.54,0.00013848,2]
[368734536,1751335841216,-1298.88,0.00013848,2]
[368734538,1751335841225,-490.0,0.00013848,2]
[368734540,1751335841235,-490.0,0.00013848,2]
[368734542,1751335841245,-777.56,0.00013848,2]
[368734544,1751335841254,-490.0,0.00013848,2]
[368734546,1751335841264,-2870.24,0.00013848,2]
[368734548,1751335841273,-490.0,0.00013848,2]
[368734550,1751335841283,-490.0,0.00013848,2]
[368734552,1751335841293,-891.48,0.00013848,2]
[368734554,1751335841302,-490.0,0.00013848,2]
[368734555,1751335841312,-1281.77,0.00013848,2]
[368734556,1751335841322,-490.0,0.00013848,2]
[368734557,1751335841331,-1054.3,0.00013848,2]
[368734558,1751335841342,-920.16,0.00013848,2]
[368734559,1751335841352,-1090.63,0.00013848,2]
[368734560,1751335841362,-1186.12,0.00013848,2]
[368734561,1751335841372,-490.0,0.00013848,2]
[368734562,1751335841387,-963.63,0.00013848,2]
[368734563,1751335841396,-919.59,0.00013848,2]
[368734564,1751335841406,-490.0,0.00013848,2]
[368734565,1751335841417,-490.0,0.00013848,2]
[368734566,1751335841427,-4254.41,0.00013848,2]
[368734567,1751335841437,-490.0,0.00013848,2]
[368734568,1751335841447,-1075.9,0.00013848,2]
[368734569,1751335841456,-2827.73,0.00013848,2]
[368734570,1751335841467,-1230.51,0.00013848,2]
[368734571,1751335841477,-919.62,0.00013848,2]
[368734572,1751335841486,-3248.33,0.00013848,2]
[368734573,1751335841496,-3093.17,0.00013848,2]
[368734574,1751335841506,-151.0,0.00013849,2]
[368734575,1751335841516,-69.07116759,0.00013849,2]
[368734576,1751335841531,-81.92883241,0.00013849,2]
[368734577,1751335841541,-617.01295136,0.00013849,2]
[368734578,1751335841583,-105.66534464,0.00013849,2]
[368734579,1751335841593,-151.0,0.00013849,2]
[368734580,1751335841603,-722.678296,0.00013849,2]
[368734581,1751335841614,-151.0,0.00013849,2]
[368734582,1751335841625,-151.0,0.00013849,2]
[368734583,1751335841635,-151.0,0.00013849,2]
[368734584,1751335841645,-151.0,0.00013849,2]
[368734585,1751335841656,-151.0,0.00013849,2]
[368734586,1751335841665,-151.0,0.00013849,2]
[368734587,1751335841675,-151.0,0.00013849,2]
[368734588,1751335841685,-156.669193,0.00013849,2]
[368734589,1751335841695,-156.669193,0.00013849,2]
[368734590,1751335841705,-641.752,0.00013849,2]
[368734591,1751335841715,-242.28050309,0.00013849,2]
[368734592,1751335841727,-361.92035661,0.00013849,2]
[368734593,1751335841739,-263.8,0.00013849,2]
[368734594,1751335841752,-1140.9991403,0.00013849,2]
[368734595,1751335841761,-806.0,0.00013849,2]
[368734596,1751335841771,-560.0,0.00013849,2]
[368734597,1751335841781,-702.147,0.00013849,2]
[368734598,1751335841791,-1281.0,0.00013849,2]
[368734599,1751335841801,-931.0,0.00013849,2]
[368734600,1751335841811,-1680.0,0.00013849,2]
[368734601,1751335841820,-1163.0,0.00013849,2]
[368734602,1751335841842,-4106.0,0.00013849,2]
[368734603,1751335841854,-157.417,0.00013849,2]
[368734604,1751335841864,-7150.0,0.00013849,2]
[368734605,1751335841874,-886.0,0.00013849,2]
[368734606,1751335841885,-151.0,0.00013852,2]
[368734607,1751335841895,-178.833931,0.00013852,2]
[368734608,1751335841905,-722.678296,0.00013852,2]
[368734609,1751335841916,-151.0,0.00013852,2]
[368734610,1751335841926,-722.678296,0.00013852,2]
[368734611,1751335841935,-151.0,0.00013852,2]
[368734612,1751335841945,-151.0,0.00013852,2]
[368734613,1751335841955,-151.395611,0.00013852,2]
[368734614,1751335841965,-151.0,0.00013852,2]
[368734615,1751335841975,-151.0,0.00013852,2]
[368734616,1751335841985,-151.0,0.00013852,2]
[368734617,1751335841995,-151.0,0.00013852,2]
[368734618,1751335842007,-156.669193,0.00013859,2]
[368734619,1751335842017,-156.66919628,0.00013859,2]
[368734620,1751335842027,-1830.94597708,0.00013862,2]
[368734621,1751335842036,-558.0,0.00013868,2]
[368734622,1751335842046,-150.0,0.00013872,2]
[368734623,1751335842056,-501.83679167,0.00013873,2]
[368734624,1751335842066,-500.0,0.00013873,2]
[368734625,1751335842076,-500.0,0.00013873,2]
[368734626,1751335842086,-494.45459176,0.00013873,2]
[368734627,1751335842096,-500.0,0.00013873,2]
[368734628,1751335842106,-501.51896565,0.00013873,2]
[368734629,1751335842116,-503.01927073,0.00013873,2]
[368734630,1751335842126,-500.0,0.00013873,2]
[368734631,1751335842136,-503.04497897,0.00013873,2]
[368734632,1751335842146,-174.617648,0.00013873,2]
[368734633,1751335842156,-151.0,0.00013873,2]
[368734634,1751335842166,-151.0,0.00013873,2]
[368734635,1751335842176,-153.407298,0.00013873,2]
[368734636,1751335842186,-153.387329,0.00013873,2]
[368734637,1751335842197,-151.0,0.00013873,2]
[368734638,1751335842208,-151.0,0.00013873,2]
[368734639,1751335842218,-320.3706523,0.00013873,2]
[368734640,1751335842228,-151.0,0.00013873,2]
[368734641,1751335842238,-490.0,0.00013873,2]
[368734642,1751335842248,-490.0,0.00013873,2]
[368734643,1751335842258,-490.0,0.00013873,2]
[368734644,1751335842268,-1112.37,0.00013873,2]
[368734645,1751335842284,-166.487963,0.00013874,2]
[368734646,1751335842294,-151.0,0.00013874,2]
[368734647,1751335842304,-155.217566,0.00013874,2]
[368734648,1751335842315,-151.0,0.00013874,2]
[368734649,1751335842324,-260.905322,0.00013874,2]
[368734650,1751335842335,-151.0,0.00013874,2]
[368734651,1751335842345,-151.0,0.00013874,2]
[368734652,1751335842356,-153.186061,0.00013874,2]
[368734653,1751335842367,-151.0,0.00013874,2]
[368734654,1751335842377,-151.0,0.00013874,2]
[368734655,1751335842387,-151.0,0.00013874,2]
[368734656,1751335842397,-151.0,0.00013874,2]
[368734657,1751335842408,-159.29787,0.00013874,2]
[368734658,1751335842418,-156.433195,0.00013874,2]
[368734659,1751335842428,-151.0,0.00013874,2]
[368734660,1751335842439,-214.617593,0.00013874,2]
[368734661,1751335842449,-151.0,0.00013874,2]
[368734662,1751335842460,-151.0,0.00013874,2]
[368734663,1751335842469,-151.0,0.00013874,2]
[368734664,1751335842480,-163.157535,0.00013874,2]
[368734665,1751335842491,-152.894818,0.00013874,2]
[368734667,1751335842501,-298.920956,0.00013874,2]
[368734669,1751335842512,-298.920956,0.00013874,2]
[368734671,1751335842524,-298.920956,0.00013874,2]
[368734673,1751335842535,-151.0,0.00013874,2]
[368734675,1751335842545,-232.392533,0.00013874,2]
[368734677,1751335842556,-298.920956,0.00013874,2]
[368734679,1751335842567,-298.920956,0.00013874,2]
[368734681,1751335842577,-298.920956,0.00013874,2]
[368734682,1751335842587,-152.429117,0.00013874,2]
[368734683,1751335842601,-168.060405,0.00013874,2]
[368734684,1751335842611,-154.656477,0.00013874,2]
[368734685,1751335842621,-163.963613,0.00013874,2]
[368734686,1751335842632,-221.17124,0.00013874,2]
[368734687,1751335842642,-150.0,0.00013874,2]
[368734688,1751335842652,-151.16397105,0.00013874,2]
[368734689,1751335842662,-155.539345,0.00013874,2]
[368734690,1751335842672,-151.0,0.00013874,2]
[368734691,1751335842682,-211.640814,0.00013874,2]
[368734692,1751335842693,-151.0,0.00013874,2]
[368734693,1751335842704,-151.0,0.00013874,2]
[368734694,1751335842714,-151.0,0.00013874,2]
[368734695,1751335842724,-151.0,0.00013874,2]
[368734696,1751335842734,-151.0,0.00013874,2]
[368734697,1751335842745,-450.0,0.00013874,2]
[368734698,1751335842756,-500.0,0.00013874,2]
[368734699,1751335842766,-500.0,0.00013874,2]
[368734700,1751335842777,-150.0,0.00013874,2]
[368734701,1751335842787,-500.0,0.00013874,2]
[368734702,1751335842797,-619.0,0.00013874,2]
[368734703,1751335842808,-150.0,0.00013874,2]
[368734704,1751335842819,-150.0,0.00013874,2]
[368734705,1751335842829,-500.0,0.00013874,2]
[368734706,1751335842840,-150.0,0.00013874,2]
[368734707,1751335842850,-150.80112443,0.00013874,2]
[368734708,1751335842861,-500.0,0.00013874,2]
[368734709,1751335842872,-151.19110373,0.00013874,2]
[368734710,1751335842882,-151.0,0.00013874,2]
[368734711,1751335842893,-281.454522,0.00013874,2]
[368734712,1751335842903,-722.678296,0.00013874,2]
[368734713,1751335842914,-722.678296,0.00013874,2]
[368734714,1751335842925,-151.0,0.00013874,2]
[368734715,1751335842935,-722.678296,0.00013874,2]
[368734716,1751335842946,-722.678296,0.00013874,2]